fUSD/lending_fUSD_20250908
["ID","MTS","AMOUNT","RATE_DAILY","PERIOD"]
[384188334,1757290242151,-206.588049,0.00019315,2]
[384188335,1757290242161,-405.615613,0.00019315,2]
[384188336,1757290242170,-405.615613,0.00019315,2]
[384188337,1757290242180,-400.0,0.00019315,2]
[384188338,1757290242190,-151.0,0.00019315,2]
[384188339,1757290242199,-400.0,0.00019315,2]
[384188340,1757290242208,-405.615613,0.00019315,2]
[384188341,1757290242218,-405.615613,0.00019315,2]
[384188342,1757290242227,-615.87,0.00019315,2]
[384188343,1757290242236,-151.0,0.00019315,2]
[384188344,1757290242246,-151.0,0.00019315,2]
[384188345,1757290242255,-400.0,0.00019315,2]
[384188346,1757290242265,-400.0,0.00019315,2]
[384188347,1757290242275,-400.0,0.00019315,2]
[384188348,1757290242284,-629.78,0.00019315,2]
[384188349,1757290242293,-400.0,0.00019315,2]
[384188350,1757290242303,-400.0,0.00019315,2]
[384188351,1757290242313,-151.0,0.00019315,2]
[384188352,1757290242324,-151.0,0.00019315,2]
[384188353,1757290242334,-185.788069,0.00019315,2]
[384188354,1757290242344,-400.0,0.00019315,2]
[384188355,1757290242354,-400.0,0.00019315,2]
[384188356,1757290242364,-187.879734,0.00019315,2]
[384188357,1757290242373,-270.789332,0.00019315,2]
[384188358,1757290242383,-151.0,0.00019315,2]
[384188359,1757290242393,-705.93,0.00019315,2]
[384188360,1757290242403,-270.789332,0.00019315,2]
[384188362,1757290242413,-187.879734,0.00019315,2]
[384188363,1757290242423,-151.0,0.00019315,2]
[384188364,1757290242433,-270.789332,0.00019315,2]
[384188366,1757290242443,-187.879734,0.00019315,2]
[384188368,1757290242453,-187.879734,0.00019315,2]
[384188370,1757290242462,-270.789332,0.00019315,2]
[384188372,1757290242472,-400.0,0.00019315,2]
[384188374,1757290242481,-400.0,0.00019315,2]
[384188375,1757290242490,-400.0,0.00019315,2]
[384188376,1757290242499,-400.0,0.00019315,2]
[384188377,1757290242508,-400.0,0.00019315,2]
[384188378,1757290242518,-400.0,0.00019315,2]
[384188380,1757290242527,-433.63,0.00019315,2]
[384188382,1757290242537,-151.0,0.00019315,2]
[384188383,1757290242547,-400.0,0.00019315,2]
[384188384,1757290242556,-151.0,0.00019315,2]
[384188385,1757290242565,-400.0,0.00019315,2]
[384188386,1757290242575,-151.0,0.00019315,2]
[384188387,1757290242584,-151.0,0.00019315,2]
[384188388,1757290242593,-402.21,0.00019315,2]
[384188389,1757290242603,-5000.0,0.00019338,2]
[384188390,1757290242613,-2572.3635,0.00019339,2]
[384188391,1757290242622,-158.604138,0.00019339,2]
[384188392,1757290242632,-167.698121,0.00019339,2]
[384188393,1757290242641,-167.698121,0.00019339,2]
[384188394,1757290242651,-167.698121,0.00019339,2]
[384188395,1757290242660,-167.698121,0.00019339,2]
[384188396,1757290242669,-151.0,0.00019339,2]
[384188397,1757290242679,-188.652513,0.00019339,2]
[384188398,1757290242688,-151.0,0.00019339,2]
[384188399,1757290242698,-151.0,0.00019339,2]
[384188400,1757290242707,-151.0,0.00019339,2]
[384188401,1757290242717,-1994.23958291,0.00019367,2]
[384188402,1757290242727,-289.47326,0.0001937,2]
[384188403,1757290242737,-1581.50496754,0.00019399,2]
[384188404,1757290242751,-900.0,0.000194,7]
[384188405,1757290242762,-1425.0,0.00019403,2]
[384188406,1757290242774,-151.0,0.00019413,2]
[384188407,1757290242784,-151.0,0.00019413,2]
[384188408,1757290242794,-530.81,0.00019413,2]
[384188409,1757290242803,-333.29,0.00019413,2]
[384188410,1757290242816,-166.67,0.00019413,2]
[384188411,1757290242826,-166.37,0.00019413,2]
[384188412,1757290242835,-409.38,0.00019413,2]
[384188413,1757290242845,-6918.97035819,0.0001942,2]
[384188414,1757290242855,-300.0,0.00019426,2]
[384188415,1757290242865,-162.16,0.00019426,2]
[384188416,1757290242875,-541.61,0.00019426,2]
[384188417,1757290242884,-300.0,0.00019426,2]
[384188418,1757290242895,-376.21,0.00019426,2]
[384188419,1757290242906,-151.15,0.00019426,2]
[384188420,1757290242916,-150.0,0.00019426,2]
[384188421,1757290242925,-150.0,0.00019426,2]
[384188422,1757290242935,-348.8,0.00019426,2]
[384188423,1757290242945,-150.0,0.00019426,2]
[384188424,1757290242956,-166.67,0.00019426,2]
[384188425,1757290242966,-333.29,0.00019426,2]
[384188426,1757290242976,-166.53,0.00019426,2]
[384188427,1757290242986,-5067.66000374,0.00019438,2]
[384188428,1757290242996,-204569.99033021,0.00019438,2]
[384188429,1757290243006,-400.0,0.00019438,2]
[384188430,1757290243017,-400.0,0.00019438,2]
[384188431,1757290243027,-400.0,0.00019438,2]
[384188432,1757290243037,-400.0,0.00019438,2]
[384188433,1757290243047,-400.0,0.00019438,2]
[384188434,1757290243057,-400.0,0.00019438,2]
[384188435,1757290243067,-528.80606893,0.00019438,2]
[384188436,1757290243077,-400.0,0.00019438,2]
[384188437,1757290243090,-400.0,0.00019438,2]
[384188438,1757290243100,-400.0,0.00019438,2]
[384188439,1757290243111,-400.0,0.00019438,2]
[384188440,1757290243121,-400.0,0.00019438,2]
[384188441,1757290243131,-400.0,0.00019438,2]
[384188442,1757290243141,-400.0,0.00019438,2]
[384188443,1757290243151,-400.0,0.00019438,2]
[384188444,1757290243160,-400.0,0.00019438,2]
[384188445,1757290243170,-455.05,0.00019438,2]
[384188446,1757290243179,-400.0,0.00019438,2]
[384188447,1757290243189,-400.0,0.00019438,2]
[384188448,1757290243198,-400.0,0.00019438,2]
[384188449,1757290243208,-400.0,0.00019438,2]
[384188450,1757290243217,-400.0,0.00019438,2]
[384188451,1757290243227,-475.38,0.00019438,2]
[384188452,1757290243237,-400.0,0.00019438,2]
[384188453,1757290243246,-584.24,0.00019438,2]
[384188454,1757290243256,-551.5,0.00019438,2]
[384188455,1757290243265,-400.0,0.00019438,2]
[384188456,1757290243275,-151.0,0.00019438,2]
[384188457,1757290243285,-151.0,0.00019438,2]
[384188458,1757290243294,-151.0,0.00019438,2]
[384188459,1757290243303,-400.0,0.00019438,2]
[384188460,1757290243313,-428.98,0.00019438,2]
[384188461,1757290243323,-400.0,0.00019438,2]
[384188462,1757290243332,-400.0,0.00019438,2]
[384188463,1757290243342,-400.0,0.00019438,2]
[384188464,1757290243351,-400.0,0.00019438,2]
[384188465,1757290243361,-151.0,0.00019438,2]
[384188466,1757290243370,-400.0,0.00019438,2]
[384188467,1757290243380,-472.9,0.00019438,2]
[384188468,1757290243389,-506.57,0.00019438,2]
[384188469,1757290243399,-151.0,0.00019438,2]
[384188470,1757290243408,-250.565248,0.00019438,2]
[384188471,1757290243417,-400.0,0.00019438,2]
[384188472,1757290243427,-250.565248,0.00019438,2]
[384188473,1757290243436,-250.565248,0.00019438,2]
[384188474,1757290243445,-681.02,0.00019438,2]
[384188475,1757290243455,-151.0,0.00019438,2]
[384188476,1757290243464,-424.29,0.00019438,2]
[384188477,1757290243474,-250.565248,0.00019438,2]
[384188478,1757290243484,-538.21,0.00019438,2]
[384188479,1757290243493,-400.0,0.00019438,2]
[384188480,1757290243502,-400.0,0.00019438,2]
[384188481,1757290243512,-400.0,0.00019438,2]
[384188482,1757290243521,-400.0,0.00019438,2]
[384188483,1757290243531,-400.0,0.00019438,2]
[384188484,1757290243540,-761.08,0.00019438,2]
[384188485,1757290243550,-400.0,0.00019438,2]
[384188486,1757290243559,-400.0,0.00019438,2]
[384188487,1757290243569,-400.0,0.00019438,2]
[384188488,1757290243578,-400.0,0.00019438,2]
[384188489,1757290243588,-400.0,0.00019438,2]
[384188490,1757290243597,-151.0,0.00019438,2]
[384188491,1757290243606,-400.0,0.00019438,2]
[384188492,1757290243616,-400.0,0.00019438,2]
[384188493,1757290243625,-400.0,0.00019438,2]
[384188494,1757290243637,-400.0,0.00019438,2]
[384188495,1757290243646,-400.0,0.00019438,2]
[384188496,1757290243656,-400.0,0.00019438,2]
[384188497,1757290243665,-400.0,0.00019438,2]
[384188498,1757290243675,-400.0,0.00019438,2]
[384188499,1757290243684,-400.0,0.00019438,2]
[384188500,1757290243693,-493.64,0.00019438,2]
[384188501,1757290243703,-400.0,0.00019438,2]
[384188502,1757290243712,-400.0,0.00019438,2]
[384188503,1757290243722,-707.3,0.00019438,2]
[384188504,1757290243731,-400.0,0.00019438,2]
[384188505,1757290243741,-400.0,0.00019438,2]
[384188506,1757290243750,-527.76,0.00019438,2]
[384188507,1757290243761,-400.0,0.00019438,2]
[384188508,1757290243771,-151.0,0.00019438,2]
[384188509,1757290243780,-400.0,0.00019438,2]
[384188510,1757290243790,-400.0,0.00019438,2]
[384188511,1757290243800,-400.0,0.00019438,2]
[384188512,1757290243811,-400.0,0.00019438,2]
[384188513,1757290243827,-400.0,0.00019438,2]
[384188514,1757290243837,-400.0,0.00019438,2]
[384188515,1757290243847,-487.34,0.00019438,2]
[384188516,1757290243857,-400.0,0.00019438,2]
[384188517,1757290243867,-400.0,0.00019438,2]
[384188518,1757290243877,-400.0,0.00019438,2]
[384188519,1757290243887,-400.0,0.00019438,2]
[384188520,1757290243897,-400.0,0.00019438,2]
[384188521,1757290243907,-151.0,0.00019438,2]
[384188522,1757290243917,-400.0,0.00019438,2]
[384188523,1757290243926,-301.779609,0.00019438,2]
[384188524,1757290243936,-400.0,0.00019438,2]
[384188525,1757290243947,-400.0,0.00019438,2]
[384188526,1757290243957,-400.0,0.00019438,2]
[384188527,1757290243966,-400.0,0.00019438,2]
[384188528,1757290243976,-151.0,0.00019438,2]
[384188529,1757290243985,-151.0,0.00019438,2]
[384188530,1757290243995,-400.0,0.00019438,2]
[384188531,1757290244005,-527.54,0.00019438,2]
[384188532,1757290244015,-151.0,0.00019438,2]
[384188533,1757290244025,-400.0,0.00019438,2]
[384188534,1757290244035,-400.0,0.00019438,2]
[384188535,1757290244045,-400.0,0.00019438,2]
[384188536,1757290244055,-400.0,0.00019438,2]
[384188537,1757290244064,-519.65,0.00019438,2]
[384188538,1757290244074,-402.44,0.00019438,2]
[384188539,1757290244084,-400.0,0.00019438,2]
[384188540,1757290244094,-400.0,0.00019438,2]
[384188541,1757290244103,-400.0,0.00019438,2]
[384188542,1757290244112,-400.0,0.00019438,2]
[384188543,1757290244121,-477.93,0.00019438,2]
[384188544,1757290244131,-400.0,0.00019438,2]
[384188545,1757290244141,-400.0,0.00019438,2]
[384188546,1757290244151,-531.26,0.00019438,2]
[384188547,1757290244161,-400.0,0.00019438,2]
[384188548,1757290244171,-400.0,0.00019438,2]
[384188549,1757290244181,-151.0,0.00019438,2]
[384188550,1757290244191,-400.0,0.00019438,2]
[384188551,1757290244200,-400.0,0.00019438,2]
[384188552,1757290244210,-400.0,0.00019438,2]
[384188553,1757290244219,-400.0,0.00019438,2]
[384188554,1757290244229,-400.0,0.00019438,2]
[384188555,1757290244239,-400.0,0.00019438,2]
[384188556,1757290244249,-608.51,0.00019438,2]
[384188557,1757290244258,-400.0,0.00019438,2]
[384188558,1757290244268,-503.86,0.00019438,2]
[384188559,1757290244278,-400.0,0.00019438,2]
[384188560,1757290244287,-401.52,0.00019438,2]
[384188561,1757290244297,-466.24,0.00019438,2]
[384188562,1757290244307,-489.34,0.00019438,2]
[384188563,1757290244316,-400.0,0.00019438,2]
[384188564,1757290244327,-400.0,0.00019438,2]
[384188565,1757290244336,-400.0,0.00019438,2]
[384188566,1757290244346,-400.0,0.00019438,2]
[384188567,1757290244356,-639.28,0.00019438,2]
[384188568,1757290244366,-400.0,0.00019438,2]
[384188569,1757290244375,-677.87,0.00019438,2]
[384188570,1757290244385,-400.0,0.00019438,2]
[384188571,1757290244394,-400.0,0.00019438,2]
[384188572,1757290244403,-648.33,0.00019438,2]
[384188573,1757290244413,-400.0,0.00019438,2]
[384188574,1757290244423,-434.07,0.00019438,2]
[384188575,1757290244432,-167.698121,0.00019438,2]
[384188576,1757290244442,-167.698121,0.00019438,2]
[384188577,1757290244452,-167.698121,0.00019438,2]
[384188578,1757290244461,-167.698121,0.00019438,2]
[384188579,1757290244471,-400.0,0.00019438,2]
[384188580,1757290244481,-666.16,0.00019438,2]
[384188581,1757290244490,-400.0,0.00019438,2]
[384188582,1757290244500,-400.0,0.00019438,2]
[384188583,1757290244510,-400.0,0.00019438,2]
[384188584,1757290244520,-400.0,0.00019438,2]
[384188585,1757290244529,-400.0,0.00019438,2]
[384188586,1757290244539,-151.0,0.00019438,2]
[384188587,1757290244549,-400.0,0.00019438,2]
[384188588,1757290244822,-157.366545,0.00019438,2]
[384188589,1757290244831,-485.99,0.00019438,2]
[384188590,1757290244841,-151.0,0.00019438,2]
[384188591,1757290244851,-400.0,0.00019438,2]
[384188592,1757290244861,-400.0,0.00019438,2]
[384188593,1757290244872,-400.0,0.00019438,2]
[384188594,1757290244883,-163.804974,0.00019438,2]
[384188595,1757290244895,-151.0,0.00019438,2]
[384188596,1757290244905,-193.639353,0.00019438,2]
[384188597,1757290244915,-400.0,0.00019438,2]
[384188598,1757290244925,-731.45,0.00019438,2]
[384188599,1757290244935,-400.0,0.00019438,2]
[384188600,1757290244945,-500.28,0.00019438,2]
[384188601,1757290244954,-400.0,0.00019438,2]
[384188602,1757290244964,-400.0,0.00019438,2]
[384188603,1757290244973,-544.15,0.00019438,2]
[384188604,1757290244983,-400.0,0.00019438,2]
[384188605,1757290244993,-400.0,0.00019438,2]
[384188606,1757290245003,-400.0,0.00019438,2]
[384188607,1757290245013,-400.0,0.00019438,2]
[384188608,1757290245022,-613.99,0.00019438,2]
[384188609,1757290245032,-400.0,0.00019438,2]
[384188610,1757290245042,-400.0,0.00019438,2]
[384188611,1757290245051,-400.0,0.00019438,2]
[384188612,1757290245061,-1763.67,0.00019438,2]
[384188613,1757290245072,-151.0,0.00019438,2]
[384188614,1757290245081,-400.0,0.00019438,2]
[384188615,1757290245091,-151.0,0.00019438,2]
[384188616,1757290245101,-151.0,0.00019438,2]
[384188617,1757290245111,-151.0,0.00019438,2]
[384188618,1757290245121,-400.0,0.00019438,2]
[384188619,1757290245131,-880.21,0.00019438,2]
[384188620,1757290245141,-417.84,0.00019438,2]
[384188621,1757290245151,-490.36,0.00019438,2]
[384188622,1757290245161,-400.0,0.00019438,2]
[384188623,1757290245170,-400.0,0.00019438,2]
[384188624,1757290245180,-151.0,0.00019438,2]
[384188625,1757290245190,-151.0,0.00019438,2]
[384188626,1757290245199,-400.0,0.00019438,2]
[384188627,1757290245209,-400.0,0.00019438,2]
[384188628,1757290245219,-970.32,0.00019438,2]
[384188629,1757290245229,-400.0,0.00019438,2]
[384188630,1757290245239,-658.7,0.00019438,2]
[384188631,1757290245249,-400.0,0.00019438,2]
[384188632,1757290245259,-400.0,0.00019438,2]
[384188633,1757290245268,-151.0,0.00019438,2]
[384188634,1757290245278,-400.0,0.00019438,2]
[384188635,1757290245288,-400.0,0.00019438,2]
[384188636,1757290245298,-151.0,0.00019438,2]
[384188637,1757290245307,-400.0,0.00019438,2]
[384188638,1757290245317,-400.0,0.00019438,2]
[384188639,1757290245327,-400.0,0.00019438,2]
[384188640,1757290245336,-477.61,0.00019438,2]
[384188641,1757290245346,-151.0,0.00019438,2]
[384188642,1757290245356,-400.0,0.00019438,2]
[384188643,1757290245367,-500.0,0.00019438,2]
[384188644,1757290245376,-400.0,0.00019438,2]
[384188645,1757290245386,-410.72,0.00019438,2]
[384188646,1757290245395,-653.33,0.00019438,2]
[384188647,1757290245405,-440.39,0.00019438,2]
[384188648,1757290245415,-206.588049,0.00019438,2]
[384188649,1757290245425,-206.588049,0.00019438,2]
[384188650,1757290245435,-206.588049,0.00019438,2]
[384188651,1757290245445,-206.588049,0.00019438,2]
[384188652,1757290245455,-206.588049,0.00019438,2]
[384188653,1757290245464,-151.0,0.00019438,2]
[384188654,1757290245474,-206.588049,0.00019438,2]
[384188655,1757290245484,-151.0,0.00019438,2]
[384188656,1757290245494,-206.588049,0.00019438,2]
[384188657,1757290245503,-405.615613,0.00019438,2]
[384188658,1757290245513,-206.588049,0.00019438,2]
[384188659,1757290245523,-405.615613,0.00019438,2]
[384188660,1757290245533,-405.615613,0.00019438,2]
[384188661,1757290245542,-405.615613,0.00019438,2]
[384188662,1757290245552,-405.615613,0.00019438,2]
[384188663,1757290245561,-400.0,0.00019438,2]
[384188664,1757290245571,-405.615613,0.00019438,2]
[384188665,1757290245580,-1422.65,0.00019438,2]
[384188666,1757290245590,-405.615613,0.00019438,2]
[384188667,1757290245599,-405.615613,0.00019438,2]
[384188668,1757290245609,-500.0,0.00019438,2]
[384188669,1757290245619,-151.0,0.00019438,2]
[384188670,1757290245628,-151.0,0.00019438,2]
[384188671,1757290245638,-222.580473,0.00019438,2]
[384188672,1757290245647,-510.62,0.00019438,2]
[384188673,1757290245657,-881.88,0.00019438,2]
[384188674,1757290245667,-400.0,0.00019438,2]
[384188675,1757290245676,-400.0,0.00019438,2]
[384188676,1757290245686,-555.26,0.00019438,2]
[384188677,1757290245695,-151.0,0.00019438,2]
[384188678,1757290245705,-151.0,0.00019438,2]
[384188679,1757290245714,-400.0,0.00019438,2]
[384188680,1757290245724,-400.0,0.00019438,2]
[384188681,1757290245734,-400.0,0.00019438,2]
[384188682,1757290245743,-2071.46,0.00019438,2]
[384188683,1757290245753,-187.879734,0.00019438,2]
[384188684,1757290245763,-270.789332,0.00019438,2]
[384188685,1757290245772,-270.789332,0.00019438,2]
[384188686,1757290245782,-151.0,0.00019438,2]
[384188687,1757290245791,-187.879734,0.00019438,2]
[384188688,1757290245801,-151.0,0.00019438,2]
[384188689,1757290245811,-270.789332,0.00019438,2]
[384188690,1757290245825,-400.0,0.00019438,2]
[384188691,1757290245835,-187.879734,0.00019438,2]
[384188692,1757290245845,-270.789332,0.00019438,2]
[384188693,1757290245854,-230.876617,0.00019438,2]
[384188694,1757290245864,-187.879734,0.00019438,2]
[384188695,1757290245874,-270.789332,0.00019438,2]
[384188696,1757290245884,-187.879734,0.00019438,2]
[384188697,1757290245893,-270.789332,0.00019438,2]
[384188698,1757290245903,-187.879734,0.00019438,2]
[384188699,1757290245912,-538.6,0.00019438,2]
[384188700,1757290245922,-187.879734,0.00019438,2]
[384188701,1757290245932,-187.879734,0.00019438,2]
[384188702,1757290245943,-472.83,0.00019438,2]
[384188703,1757290245952,-270.789332,0.00019438,2]
[384188704,1757290245962,-400.0,0.00019438,2]
[384188705,1757290245972,-270.789332,0.00019438,2]
[384188706,1757290245982,-508.72,0.00019438,2]
[384188707,1757290245992,-400.0,0.00019438,2]
[384188708,1757290246003,-733.89,0.00019438,2]
[384188709,1757290246013,-400.0,0.00019438,2]
[384188710,1757290246024,-400.0,0.00019438,2]
[384188711,1757290246034,-579.18,0.00019438,2]
[384188712,1757290246044,-709.39,0.00019438,2]
[384188713,1757290246054,-400.0,0.00019438,2]
[384188714,1757290246063,-446.4,0.00019438,2]
[384188715,1757290246073,-400.0,0.00019438,2]
[384188716,1757290246083,-946.99,0.00019438,2]
[384188717,1757290246092,-400.0,0.00019438,2]
[384188718,1757290246102,-400.0,0.00019438,2]
[384188719,1757290246111,-491.88,0.00019438,2]
[384188720,1757290246121,-1205.0,0.00019438,2]
[384188721,1757290246131,-400.0,0.00019438,2]
[384188722,1757290246141,-400.0,0.00019438,2]
[384188723,1757290246151,-400.0,0.00019438,2]
[384188724,1757290246161,-400.0,0.00019438,2]
[384188725,1757290246171,-151.0,0.00019438,2]
[384188726,1757290246181,-400.0,0.00019438,2]
[384188727,1757290246191,-151.0,0.00019438,2]
[384188728,1757290246201,-151.0,0.00019438,2]
[384188729,1757290246211,-151.0,0.00019438,2]
[384188730,1757290246220,-400.0,0.00019438,2]
[384188731,1757290246230,-3227.08,0.00019438,2]
[384188732,1757290246239,-400.0,0.00019438,2]
[384188733,1757290246249,-151.0,0.00019438,2]
[384188734,1757290246259,-400.0,0.00019438,2]
[384188735,1757290246269,-151.0,0.00019438,2]
[384188736,1757290246278,-206.498508,0.00019438,2]
[384188737,1757290246288,-400.0,0.00019438,2]
[384188738,1757290246298,-400.0,0.00019439,2]
[384188739,1757290246308,-400.0,0.00019439,2]
[384188740,1757290246318,-400.0,0.00019439,2]
[384188741,1757290246328,-406.92342353,0.00019439,2]
[384188742,1757290246338,-400.0,0.00019439,2]
[384188743,1757290246348,-428.86116303,0.00019439,2]
[384188744,1757290246358,-400.0,0.00019439,2]
[384188745,1757290246368,-400.0,0.00019439,2]
[384188746,1757290246378,-400.0,0.00019439,2]
[384188747,1757290246388,-400.0,0.00019439,2]
[384188748,1757290246398,-400.0,0.00019439,2]
[384188749,1757290246407,-477.49,0.00019439,2]
[384188750,1757290246417,-400.0,0.00019439,2]
[384188751,1757290246427,-400.0,0.00019439,2]
[384188752,1757290246436,-400.0,0.00019439,2]
[384188753,1757290246446,-400.0,0.00019439,2]
[384188754,1757290246456,-400.0,0.00019439,2]
[384188755,1757290246465,-400.0,0.00019439,2]
[384188756,1757290246475,-400.0,0.00019439,2]
[384188757,1757290246485,-400.0,0.00019439,2]
[384188758,1757290246495,-400.0,0.00019439,2]
[384188759,1757290246505,-400.0,0.00019439,2]
[384188760,1757290246514,-400.0,0.00019439,2]
[384188761,1757290246523,-400.0,0.00019439,2]
[384188762,1757290246533,-400.0,0.00019439,2]
[384188763,1757290246543,-400.0,0.00019439,2]
[384188764,1757290246552,-400.0,0.00019439,2]
[384188765,1757290246562,-400.0,0.00019439,2]
[384188766,1757290246572,-400.0,0.00019439,2]
[384188767,1757290246581,-400.0,0.00019439,2]
[384188768,1757290246591,-500.0,0.00019439,2]
[384188769,1757290246601,-400.0,0.00019439,2]
[384188770,1757290246611,-400.0,0.00019439,2]
[384188771,1757290246620,-151.0,0.00019439,2]
[384188772,1757290246631,-151.0,0.00019439,2]
[384188773,1757290246641,-151.0,0.00019439,2]
[384188774,1757290246651,-400.0,0.00019439,2]
[384188775,1757290246661,-400.0,0.00019439,2]
[384188776,1757290246670,-545.76,0.00019439,2]
[384188777,1757290246681,-523.78,0.00019439,2]
[384188778,1757290246690,-400.0,0.00019439,2]
[384188779,1757290246700,-606.29,0.00019439,2]
[384188780,1757290246710,-400.0,0.00019439,2]
[384188781,1757290246721,-151.0,0.00019439,2]
[384188782,1757290246730,-151.0,0.00019439,2]
[384188783,1757290246740,-415.53,0.00019439,2]
[384188784,1757290246750,-482.51,0.00019439,2]
[384188785,1757290246760,-427.15,0.00019439,2]
[384188786,1757290246770,-151.0,0.00019439,2]
[384188787,1757290246780,-400.0,0.00019439,2]
[384188788,1757290246790,-700.18,0.00019439,2]
[384188789,1757290246800,-660.66,0.00019439,2]
[384188790,1757290246809,-185.026951,0.00019439,2]
[384188791,1757290246819,-151.0,0.00019439,2]
[384188792,1757290246832,-685.96,0.00019439,2]
[384188793,1757290246842,-400.0,0.00019439,2]
[384188794,1757290246851,-754.55,0.00019439,2]
[384188795,1757290246861,-628.51,0.00019439,2]
[384188796,1757290246873,-565.99,0.00019439,2]
[384188797,1757290246883,-685.52,0.00019439,2]
[384188798,1757290246892,-753.6,0.00019439,2]
[384188799,1757290246901,-400.0,0.00019439,2]
[384188800,1757290246913,-436.73,0.00019439,2]
[384188801,1757290246924,-515.34,0.00019439,2]
[384188802,1757290246934,-400.0,0.00019439,2]
[384188803,1757290246944,-200.0,0.00019439,2]
[384188804,1757290246954,-400.0,0.00019439,2]
[384188805,1757290246964,-678.63,0.00019439,2]
[384188806,1757290246973,-430.15,0.00019439,2]
[384188807,1757290246983,-151.0,0.00019439,2]
[384188808,1757290246992,-702.13,0.00019439,2]
[384188809,1757290247002,-400.0,0.00019439,2]
[384188810,1757290247011,-400.0,0.00019439,2]
[384188811,1757290247021,-561.54,0.00019439,2]
[384188812,1757290247030,-647.79,0.00019439,2]
[384188813,1757290247040,-516.67,0.00019439,2]
[384188814,1757290247049,-516.84,0.00019439,2]
[384188815,1757290247059,-400.0,0.00019439,2]
[384188816,1757290247069,-819.1,0.00019439,2]
[384188817,1757290247078,-500.0,0.00019439,2]
[384188818,1757290247087,-1623.68,0.00019439,2]
[384188819,1757290247097,-751.34,0.00019439,2]
[384188820,1757290247106,-151.0,0.00019439,2]
[384188821,1757290247118,-400.0,0.00019439,2]
[384188822,1757290247127,-776.02,0.00019439,2]
[384188823,1757290247138,-652.66,0.00019439,2]
[384188824,1757290247148,-3708.04,0.00019439,2]
[384188825,1757290247158,-1160.34,0.00019439,2]
[384188826,1757290247168,-400.0,0.00019439,2]
[384188827,1757290247178,-400.0,0.00019439,2]
[384188828,1757290247187,-779.85,0.00019439,2]
[384188829,1757290247196,-950.2,0.00019439,2]
[384188830,1757290247291,-400.0,0.00019439,2]
[384188831,1757290247300,-807.9,0.00019439,2]
[384188832,1757290247309,-846.0,0.00019439,2]
[384188833,1757290247319,-642.85,0.00019439,2]
[384188834,1757290247328,-946.33,0.00019439,2]
[384188835,1757290247338,-195.24407247,0.00019439,2]
[384188836,1757290247347,-400.0,0.00019439,2]
[384188837,1757290247356,-791.36,0.00019439,2]
[384188838,1757290247365,-167.698121,0.00019439,2]
[384188839,1757290247376,-167.698121,0.00019439,2]
[384188840,1757290247385,-167.698121,0.00019439,2]
[384188841,1757290247395,-167.698121,0.00019439,2]